[Event "European School-ch G13 2024"]
[Site "Limerick"]
[Date "2024.06.05"]
[Round "5.1"]
[White "Yazici, Zumral"]
[Black "Sahin, Cagla Yudum"]
[Result "1/2-1/2"]
[ECO "C47"]
[WhiteElo "1650"]
[BlackElo "1720"]
[Annotator "NA RC"]
[PlyCount "103"]
[EventDate "2024.05.31"]
[EventType "swiss"]
[EventCountry "IRL"]
[SourceTitle "playchess.com"]
[Source "ChessBase"]
[SourceQuality "1"]
[TimeControl "5400+30"]

1. e4 {[%emt 0:00:02]} e5 {[%emt 0:00:03]} 2. Nf3 {[%emt 0:00:03]} Nc6 {[%emt 0:00:04]} 3. Nc3 {[%emt 0:00:02]} Nf6 {[%emt 0:00:06]} 4. d4 {[%emt 0:00:04]} exd4 {[%emt 0:00:03]} 5. Nxd4 {[%emt 0:00:03]} Bb4 {[%emt 0:00:09]} 6. Nxc6 {[%emt 0:00:02]} bxc6 {[%emt 0:00:07]} 7. Bd3 {[%emt 0:00:03]} d5 {[%emt 0:00:05]} 8. exd5 {[%emt 0:00:04]} O-O {[%emt 0:00:08]} 9. O-O {[%emt 0:00:04]} cxd5 {[%emt 0:00:05]} 10. h3 {[%emt 0:00:08]} Rb8 {[%emt 0:00:07]} 11. Qf3 {[%emt 0:00:13]} Rb6 {[%emt 0:00:13]} 12. Bf4 {[%emt 0:08:57]} Bd6 {[%emt 0:12:36]} 13. Bg5 {[%emt 0:11:37]} c6 {[%emt 0:06:00]} 14. Bxf6 {[%emt 0:08:34]} Qxf6 {[%emt 0:00:07]} 15. Qxf6 {[%emt 0:01:05]} gxf6 {[%emt 0:00:04]} 16. Rab1 {[%emt 0:04:16]} Be6 {[%emt 0:02:04]} 17. f4 {[%emt 0:07:45]} Re8 {[%emt 0:06:57]} 18. Kh1 {[%emt 0:07:48]} Rb4 {[%emt 0:10:24]} 19. Ne2 {[%emt 0:05:13]} c5 {[%emt 0:03:16]} 20. c3 {[%emt 0:00:51]} Rb6 {[%emt 0:07:53]} 21. Ng3 {[%emt 0:11:09]} Reb8 {[%emt 0:05:59]} 22. Nh5 {[%emt 0:01:41]} f5 {[%emt 0:10:42]} 23. g4 {[%emt 0:02:37]} c4 {[%emt 0:04:26]} 24. Bxf5 {[%emt 0:11:30]} Bxf5 {[%emt 0:14:00]} 25. gxf5 {[%emt 0:00:01]} Ba3 {[%emt 0:00:24]} 26. b3 {[%emt 0:14:44]} cxb3 {[%emt 0:02:18]} 27. axb3 {[%emt 0:01:13]} Rxb3 {[%emt 0:01:35]} 28. Rg1+ {[%emt 0:01:15]} Kf8 {[%emt 0:00:33]} 29. Rxb3 {[%emt 0:00:09]} Rxb3 {[%emt 0:00:02]} 30. Nf6 {[%emt 0:00:15]} Ke7 {[%emt 0:01:28]} 31. Nxd5+ {[%emt 0:00:26]} Kd6 {[%emt 0:00:16]} 32. Rd1 {[%emt 0:00:58]} Kc5 {[%emt 0:00:31]} 33. Nf6 {[%emt 0:01:46]} Kc6 {[%emt 0:02:23]} 34. Ne4 {[%emt 0:00:55]} a5 {[%emt 0:01:50]} 35. f6 {[%emt 0:01:17]} Bb2 {[%emt 0:02:15]} 36. Rd6+ {[%emt 0:01:05]} Kb5 {[%emt 0:04:05]} 37. c4+ {[%emt 0:00:23]} Kxc4 {[%emt 0:01:21]} 38. Nd2+ {[%emt 0:00:13]} Kc5 {[%emt 0:00:11]} 39. Nxb3+ {[%emt 0:00:25]} Kxd6 {[%emt 0:00:06]} 40. Nxa5 {[%emt 0:00:02]} Bxf6 {[%emt 0:00:13]} 41. Kg2 {[%emt 0:00:20]} Kd5 {[%emt 0:00:35]} 42. Kf3 {[%emt 0:00:09]} h5 {[%emt 0:02:04]} 43. Nb3 {[%emt 0:00:19]} Bc3 {[%emt 0:01:05]} 44. Nc1 {[%emt 0:00:12]} Bf6 {[%emt 0:01:18]} 45. Ne2 {[%emt 0:00:17]} h4 {[%emt 0:00:44]} 46. Kg4 {[%emt 0:00:52]} Ke4 {[%emt 0:00:14]} 47. Ng1 {[%emt 0:00:08]} Bd8 {[%emt 0:00:46]} 48. f5 {[%emt 0:00:21]} Bf6 {[%emt 0:01:09]} 49. Nf3 {[%emt 0:00:05]} Be7 {[%emt 0:00:41]} 50. Nd2+ {[%emt 0:01:14]} Ke3 {[%emt 0:00:30]} 51. Nf3 {[%emt 0:00:10]} Ke4 {[%emt 0:00:13]} 52. Nd2+ {[%emt 0:01:35]} 1/2-1/2

[Event "European School-ch G13 2024"]
[Site "Limerick"]
[Date "2024.06.05"]
[Round "5.2"]
[White "Zeybek, Kayla Nil"]
[Black "Isopescu, Iulia Elena"]
[Result "1-0"]
[ECO "A03"]
[WhiteElo "1638"]
[BlackElo "1701"]
[Annotator "NA RC"]
[PlyCount "49"]
[EventDate "2024.05.31"]
[EventType "swiss"]
[EventCountry "IRL"]
[SourceTitle "playchess.com"]
[Source "ChessBase"]
[SourceQuality "1"]
[TimeControl "5400+30"]

1. f4 {[%emt 0:00:01]} d5 {[%emt 0:00:59]} 2. Nf3 {[%emt 1:31:29]} c5 {[%emt 0:00:53]} 3. g3 {[%emt 0:00:00]} Nc6 {[%emt 0:01:14]} 4. Bg2 {[%emt 0:00:00]} Nf6 {[%emt 0:01:25]} 5. O-O {[%emt 0:00:00]} e6 {[%emt 0:01:46]} 6. d3 {[%emt 0:00:00]} Bd6 {[%emt 0:03:27]} 7. Qe1 {[%emt 0:00:00]} O-O {[%emt 0:05:18]} 8. e4 {[%emt 0:00:00]} dxe4 {[%emt 0:02:09]} 9. dxe4 {[%emt 0:00:00]} e5 {[%emt 0:01:53]} 10. f5 {[%emt 0:00:00]} Nd4 {[%emt 0:11:00]} 11. Na3 {[%emt 0:00:00]} Bd7 {[%emt 0:07:33]} 12. c3 {[%emt 0:00:00]} Nxf3+ {[%emt 0:02:29]} 13. Bxf3 {[%emt 0:00:00]} b5 {[%emt 0:04:55]} 14. Nc2 {[%emt 0:00:00]} Qb6 {[%emt 0:07:07]} 15. g4 {[%emt 0:00:00]} Ne8 {[%emt 0:08:53]} 16. g5 {[%emt 0:00:00]} a5 {[%emt 0:14:24]} 17. f6 {[%emt 0:00:00]} c4+ {[%emt 0:10:14]} 18. Kh1 {[%emt 0:00:00]} Bc5 {[%emt 0:05:36]} 19. Qh4 {[%emt 0:00:00]} Qe6 {[%emt 0:03:15]} 20. Be3 {[%emt 0:02:46]} Rc8 {[%emt 0:02:40]} 21. Rg1 {[%emt 0:02:37]} Qh3 {[%emt 0:01:20]} 22. Qf2 {[%emt 0:00:08]} Bxe3 {[%emt 0:01:27]} 23. Nxe3 {[%emt 0:00:03]} Be6 {[%emt 0:01:05]} 24. Rg3 {[%emt 0:01:25]} Qh4 {[%emt 0:00:09]} 25. Ng2 {[%emt 0:00:11]} 1-0

[Event "European School-ch G13 2024"]
[Site "Limerick"]
[Date "2024.06.05"]
[Round "5.3"]
[White "Dogan, Ipek"]
[Black "Tumer, Eylul"]
[Result "1-0"]
[ECO "D09"]
[WhiteElo "1551"]
[BlackElo "1539"]
[Annotator "NA RC"]
[PlyCount "79"]
[EventDate "2024.05.31"]
[EventType "swiss"]
[EventCountry "IRL"]
[SourceTitle "playchess.com"]
[Source "ChessBase"]
[SourceQuality "1"]
[TimeControl "5400+30"]

1. d4 {[%emt 0:00:02]} d5 {[%emt 0:00:05]} 2. c4 {[%emt 0:00:05]} e5 {[%emt 0:00:03]} 3. dxe5 {[%emt 0:00:12]} d4 {[%emt 0:00:06]} 4. Nf3 {[%emt 0:00:20]} Nc6 {[%emt 0:00:03]} 5. g3 {[%emt 0:02:41]} Bg4 {[%emt 0:00:12]} 6. Bg2 {[%emt 0:01:07]} Qd7 {[%emt 0:00:21]} 7. O-O {[%emt 0:05:49]} h5 {[%emt 0:06:21]} 8. h4 {[%emt 0:02:45]} O-O-O {[%emt 0:03:19]} 9. a3 {[%emt 0:06:32]} Bxf3 {[%emt 0:08:48]} 10. Bxf3 {[%emt 0:02:39]} Nxe5 {[%emt 0:01:39]} 11. Bd5 {[%emt 0:08:08]} c6 {[%emt 0:12:18]} 12. Bg2 {[%emt 0:06:14]} Be7 {[%emt 0:04:22]} 13. Qa4 {[%emt 0:06:13]} Kb8 {[%emt 0:02:26]} 14. Bf4 {[%emt 0:02:49]} f6 {[%emt 0:01:42]} 15. Rd1 {[%emt 0:03:31]} Qe6 {[%emt 0:04:33]} 16. Nd2 {[%emt 0:06:20]} g5 {[%emt 0:01:58]} 17. hxg5 {[%emt 0:00:40]} fxg5 {[%emt 0:00:22]} 18. Bxe5+ {[%emt 0:00:33]} Qxe5 {[%emt 0:00:08]} 19. Nf3 {[%emt 0:01:33]} Qf6 {[%emt 0:04:17]} 20. Rd3 {[%emt 0:03:02]} g4 {[%emt 0:03:10]} 21. Nh4 {[%emt 0:05:20]} Qe6 {[%emt 0:03:28]} 22. Rad1 {[%emt 0:01:36]} Bxh4 {[%emt 0:00:43]} 23. gxh4 {[%emt 0:00:07]} Qf6 {[%emt 0:02:40]} 24. e3 {[%emt 0:04:14]} Rf8 {[%emt 0:04:29]} 25. R1d2 {[%emt 0:03:25]} dxe3 {[%emt 0:00:31]} 26. Rxe3 {[%emt 0:01:00]} Ne7 {[%emt 0:04:15]} 27. Qb4 {[%emt 0:05:05]} Nf5 {[%emt 0:03:40]} 28. Rd7 {[%emt 0:02:28]} b6 {[%emt 0:01:50]} 29. Qa4 {[%emt 0:01:28]} a5 {[%emt 0:01:34]} 30. Rb3 {[%emt 0:04:23]} Kc8 {[%emt 0:02:45]} 31. Rdd3 {[%emt 0:06:11]} Nxh4 {[%emt 0:05:41]} 32. Qxc6+ {[%emt 0:03:47]} Qxc6 {[%emt 0:00:10]} 33. Bxc6 {[%emt 0:00:04]} Kc7 {[%emt 0:00:28]} 34. Bh1 {[%emt 0:00:58]} Rf4 {[%emt 0:00:48]} 35. Rbc3 {[%emt 0:01:00]} Re8 {[%emt 0:00:25]} 36. Rd1 {[%emt 0:01:57]} Re2 {[%emt 0:00:21]} 37. Rcd3 {[%emt 0:00:11]} Rexf2 {[%emt 0:02:05]} 38. Rd7+ {[%emt 0:00:09]} Kb8 {[%emt 0:00:43]} 39. Rd8+ {[%emt 0:00:05]} Ka7 {[%emt 0:00:17]} 40. Ra8# {[%emt 0:00:09]} 1-0

[Event "European School-ch G13 2024"]
[Site "Limerick"]
[Date "2024.06.05"]
[Round "5.4"]
[White "Doolin, Bedhbh"]
[Black "Aydogan, Arya"]
[Result "0-1"]
[ECO "C50"]
[WhiteElo "1644"]
[BlackElo "1755"]
[Annotator "NA RC"]
[PlyCount "58"]
[EventDate "2024.05.31"]
[EventType "swiss"]
[EventCountry "IRL"]
[SourceTitle "playchess.com"]
[Source "ChessBase"]
[SourceQuality "1"]
[TimeControl "5400+30"]

1. e4 {[%emt 0:00:03]} e5 {[%emt 0:00:12]} 2. Nf3 {[%emt 0:00:04]} Nc6 {[%emt 0:00:56]} 3. Bc4 {[%emt 0:00:21]} Bc5 {[%emt 0:00:47]} 4. Nc3 {[%emt 0:01:09]} Nf6 {[%emt 0:06:49]} 5. d3 {[%emt 0:00:35]} h6 {[%emt 0:08:11]} 6. O-O {[%emt 0:00:27]} d6 {[%emt 0:06:03]} 7. h3 {[%emt 0:00:47]} O-O {[%emt 0:03:46]} 8. Be3 {[%emt 0:09:11]} Bb6 {[%emt 0:04:48]} 9. Bxb6 {[%emt 0:00:45]} axb6 {[%emt 0:01:03]} 10. a4 {[%emt 0:04:21]} Be6 {[%emt 0:06:37]} 11. Bb3 {[%emt 0:04:27]} Bxb3 {[%emt 0:05:44]} 12. cxb3 {[%emt 0:00:10]} d5 {[%emt 0:03:38]} 13. d4 {[%emt 0:07:39]} exd4 {[%emt 0:05:21]} 14. Nxd4 {[%emt 0:09:29]} dxe4 {[%emt 0:01:46]} 15. Nxc6 {[%emt 0:03:37]} bxc6 {[%emt 0:00:12]} 16. Qe2 {[%emt 0:00:57]} Qe7 {[%emt 0:06:49]} 17. Rfe1 {[%emt 0:00:29]} Rfe8 {[%emt 0:01:12]} 18. Rad1 {[%emt 0:00:46]} Ra5 {[%emt 0:05:27]} 19. Rd4 {[%emt 0:05:10]} Re5 {[%emt 0:00:49]} 20. b4 {[%emt 0:03:55]} Nd5 {[%emt 0:02:50]} 21. Rc4 {[%emt 0:14:07]} Nf4 {[%emt 0:06:29]} 22. Qe3 {[%emt 0:08:28]} Nd3 {[%emt 0:01:47]} 23. Re2 {[%emt 0:04:06]} f5 {[%emt 0:01:31]} 24. Na2 {[%emt 0:07:00]} f4 {[%emt 0:05:35]} 25. Qd2 {[%emt 0:03:02]} Qg5 {[%emt 0:04:53]} 26. f3 {[%emt 0:09:00]} exf3 {[%emt 0:01:07]} 27. Rxe5 {[%emt 0:01:53]} Rxe5 {[%emt 0:00:08]} 28. Rc1 {[%emt 0:00:41]} Nxc1 {[%emt 0:00:20]} 29. Nxc1 {[%emt 0:00:16]} Re1+ {[%emt 0:01:12]} 0-1

[Event "European School-ch G13 2024"]
[Site "Limerick"]
[Date "2024.06.05"]
[Round "5.6"]
[White "B. Berglindardottir, Emilia Embla"]
[Black "Babijczuk, Nina"]
[Result "1-0"]
[ECO "D00"]
[WhiteElo "1544"]
[BlackElo "1514"]
[Annotator "NA RC"]
[PlyCount "55"]
[EventDate "2024.05.31"]
[EventType "swiss"]
[EventCountry "IRL"]
[SourceTitle "playchess.com"]
[Source "ChessBase"]
[SourceQuality "1"]
[TimeControl "5400+30"]

1. d4 {[%emt 0:00:02]} d5 {[%emt 0:00:20]} 2. Bf4 {[%emt 0:00:12]} Bf5 {[%emt 0:00:18]} 3. e3 {[%emt 0:00:10]} Nc6 {[%emt 0:00:07]} 4. Nf3 {[%emt 0:00:10]} Nf6 {[%emt 0:00:24]} 5. Nc3 {[%emt 0:00:35]} e6 {[%emt 0:00:11]} 6. Bd3 {[%emt 0:00:12]} Bb4 {[%emt 0:00:55]} 7. Bxf5 {[%emt 0:00:28]} exf5 {[%emt 0:00:37]} 8. Qd3 {[%emt 0:00:36]} g6 {[%emt 0:01:25]} 9. O-O {[%emt 0:01:17]} O-O {[%emt 0:00:23]} 10. Bg5 {[%emt 0:04:05]} h6 {[%emt 0:04:41]} 11. Bxh6 {[%emt 0:03:08]} Re8 {[%emt 0:00:14]} 12. Bg5 {[%emt 0:00:58]} a6 {[%emt 0:00:52]} 13. Nxd5 {[%emt 0:05:29]} Be7 {[%emt 0:02:12]} 14. Nxe7+ {[%emt 0:01:07]} Qxe7 {[%emt 0:00:16]} 15. Qc3 {[%emt 0:07:32]} Qe6 {[%emt 0:04:02]} 16. b3 {[%emt 0:03:23]} Nd5 {[%emt 0:02:52]} 17. Qb2 {[%emt 0:00:38]} f6 {[%emt 0:00:59]} 18. Bh4 {[%emt 0:05:09]} f4 {[%emt 0:07:58]} 19. exf4 {[%emt 0:01:41]} Nxf4 {[%emt 0:00:15]} 20. d5 {[%emt 0:02:33]} Qxd5 {[%emt 0:00:41]} 21. Bxf6 {[%emt 0:01:32]} Kf7 {[%emt 0:09:56]} 22. Rad1 {[%emt 0:06:17]} Qf5 {[%emt 0:02:46]} 23. Ng5+ {[%emt 0:01:45]} Kf8 {[%emt 0:01:02]} 24. Bg7+ {[%emt 0:00:45]} Ke7 {[%emt 0:01:23]} 25. Rfe1+ {[%emt 0:00:33]} Ne6 {[%emt 0:04:42]} 26. Qa3+ {[%emt 0:00:53]} Nb4 {[%emt 0:02:19]} 27. Qxb4+ {[%emt 0:00:22]} c5 {[%emt 0:00:06]} 28. Qxc5+ {[%emt 0:00:26]} 1-0

[Event "European School-ch G13 2024"]
[Site "Limerick"]
[Date "2024.06.06"]
[Round "6.1"]
[White "Yazici, Zumral"]
[Black "Doolin, Nemhain"]
[Result "1-0"]
[ECO "C01"]
[WhiteElo "1650"]
[BlackElo "1726"]
[Annotator "NA RC"]
[PlyCount "69"]
[EventDate "2024.05.31"]
[EventType "swiss"]
[EventCountry "IRL"]
[SourceTitle "playchess.com"]
[Source "ChessBase"]
[SourceQuality "1"]
[TimeControl "5400+30"]

1. e4 {[%emt 0:00:01]} e6 {[%emt 0:00:01]} 2. d4 {[%emt 0:00:02]} d5 {[%emt 0:00:04]} 3. exd5 {[%emt 0:00:01]} exd5 {[%emt 0:00:02]} 4. Bd3 {[%emt 0:00:02]} Bd6 {[%emt 0:00:06]} 5. Nf3 {[%emt 0:00:09]} Ne7 {[%emt 0:00:06]} 6. O-O {[%emt 0:00:49]} O-O {[%emt 0:00:03]} 7. Be3 {[%emt 0:00:54]} Bf5 {[%emt 0:00:09]} 8. c3 {[%emt 0:00:48]} Bxd3 {[%emt 0:00:54]} 9. Qxd3 {[%emt 0:00:02]} Nd7 {[%emt 0:00:07]} 10. Nbd2 {[%emt 0:02:03]} Nf6 {[%emt 0:00:12]} 11. Bg5 {[%emt 0:03:51]} Ng6 {[%emt 0:02:18]} 12. Rfe1 {[%emt 0:06:56]} h6 {[%emt 0:02:06]} 13. Be3 {[%emt 0:02:52]} Qd7 {[%emt 0:03:02]} 14. c4 {[%emt 0:05:49]} Rfe8 {[%emt 0:06:01]} 15. c5 {[%emt 0:06:01]} Bf4 {[%emt 0:02:25]} 16. Nf1 {[%emt 0:13:08]} Bxe3 {[%emt 0:06:08]} 17. Nxe3 {[%emt 0:01:01]} Ng4 {[%emt 0:09:52]} 18. h3 {[%emt 0:07:55]} Nf4 {[%emt 0:07:41]} 19. Qd2 {[%emt 0:01:50]} Nxe3 {[%emt 0:02:02]} 20. Rxe3 {[%emt 0:00:58]} Qf5 {[%emt 0:05:56]} 21. Rae1 {[%emt 0:08:55]} Re4 {[%emt 0:08:13]} 22. Kh2 {[%emt 0:10:41]} Rae8 {[%emt 0:05:35]} 23. g4 {[%emt 0:13:32]} Qf6 {[%emt 0:05:47]} 24. Ne5 {[%emt 0:03:20]} Rxe3 {[%emt 0:10:19]} 25. Rxe3 {[%emt 0:03:03]} Re7 {[%emt 0:17:12]} 26. Rf3 {[%emt 0:02:52]} g5 {[%emt 0:00:08]} 27. Qa5 {[%emt 0:02:36]} a6 {[%emt 0:02:16]} 28. Qb4 {[%emt 0:00:44]} c6 {[%emt 0:00:21]} 29. Qb6 {[%emt 0:00:57]} Kg7 {[%emt 0:01:04]} 30. Qd8 {[%emt 0:00:33]} Qe6 {[%emt 0:00:41]} 31. Re3 {[%emt 0:01:16]} Re8 {[%emt 0:01:38]} 32. Qc7 {[%emt 0:00:48]} Qc8 {[%emt 0:00:30]} 33. Qxf7+ {[%emt 0:00:09]} Kh8 {[%emt 0:00:33]} 34. Ng6+ {[%emt 0:00:03]} Nxg6 {[%emt 0:00:11]} 35. Rxe8+ {[%emt 0:00:02]} 1-0

[Event "European School-ch G13 2024"]
[Site "Limerick"]
[Date "2024.06.06"]
[Round "6.2"]
[White "Sahin, Cagla Yudum"]
[Black "Zeybek, Kayla Nil"]
[Result "1-0"]
[ECO "B23"]
[WhiteElo "1720"]
[BlackElo "1638"]
[Annotator "NA RC"]
[PlyCount "57"]
[EventDate "2024.05.31"]
[EventType "swiss"]
[EventCountry "IRL"]
[SourceTitle "playchess.com"]
[Source "ChessBase"]
[SourceQuality "1"]
[TimeControl "5400+30"]

1. e4 {[%emt 0:00:02]} c5 {[%emt 0:00:03]} 2. Nc3 {[%emt 0:00:04]} Nc6 {[%emt 0:00:02]} 3. Bb5 {[%emt 0:00:04]} Nd4 {[%emt 0:01:37]} 4. Nf3 {[%emt 0:00:11]} Nxb5 {[%emt 0:01:41]} 5. Nxb5 {[%emt 0:00:02]} d5 {[%emt 0:00:11]} 6. exd5 {[%emt 0:01:49]} a6 {[%emt 0:00:03]} 7. Nc3 {[%emt 0:01:03]} Nf6 {[%emt 0:00:12]} 8. d4 {[%emt 0:06:21]} Nxd5 {[%emt 0:04:19]} 9. Ne4 {[%emt 0:09:05]} Bf5 {[%emt 0:02:33]} 10. Ng3 {[%emt 0:09:13]} Bg4 {[%emt 0:12:29]} 11. dxc5 {[%emt 0:11:51]} Nb4 {[%emt 0:05:58]} 12. Qe2 {[%emt 0:02:17]} Bxf3 {[%emt 0:06:39]} 13. gxf3 {[%emt 0:00:18]} e6 {[%emt 0:05:00]} 14. Ne4 {[%emt 0:06:56]} Qc7 {[%emt 0:21:05]} 15. c3 {[%emt 0:09:53]} Nd5 {[%emt 0:00:59]} 16. Qc4 {[%emt 0:03:16]} f5 {[%emt 0:22:24]} 17. Ng5 {[%emt 0:03:18]} Bxc5 {[%emt 0:09:06]} 18. Qe2 {[%emt 0:03:09]} Qb6 {[%emt 0:02:10]} 19. Qxe6+ {[%emt 0:01:18]} Ne7 {[%emt 0:00:13]} 20. O-O {[%emt 0:07:17]} Rd8 {[%emt 0:02:47]} 21. Qf7+ {[%emt 0:02:05]} Kd7 {[%emt 0:00:05]} 22. Bf4 {[%emt 0:02:01]} Rde8 {[%emt 0:01:07]} 23. b4 {[%emt 0:01:38]} Qf6 {[%emt 0:00:37]} 24. bxc5 {[%emt 0:19:19]} Ref8 {[%emt 0:00:36]} 25. Rad1+ {[%emt 0:00:00]} Kc8 {[%emt 0:00:16]} 26. Qe6+ {[%emt 0:00:00]} Qxe6 {[%emt 0:00:04]} 27. Nxe6 {[%emt 0:00:00]} Rf6 {[%emt 0:00:04]} 28. Nd4 {[%emt 0:00:00]} g5 {[%emt 0:01:06]} 29. Be5 {[%emt 0:00:00]} 1-0

[Event "European School-ch G13 2024"]
[Site "Limerick"]
[Date "2024.06.06"]
[Round "6.3"]
[White "Aydogan, Arya"]
[Black "Dogan, Ipek"]
[Result "1-0"]
[ECO "B52"]
[WhiteElo "1755"]
[BlackElo "1551"]
[Annotator "NA RC"]
[PlyCount "51"]
[EventDate "2024.05.31"]
[EventType "swiss"]
[EventCountry "IRL"]
[SourceTitle "playchess.com"]
[Source "ChessBase"]
[SourceQuality "1"]
[TimeControl "5400+30"]

1. e4 {[%emt 0:00:04]} c5 {[%emt 0:00:04]} 2. Nf3 {[%emt 0:00:10]} d6 {[%emt 0:00:06]} 3. Bb5+ {[%emt 0:00:10]} Bd7 {[%emt 0:00:13]} 4. Bxd7+ {[%emt 0:05:12]} Qxd7 {[%emt 0:00:26]} 5. O-O {[%emt 0:05:02]} Nf6 {[%emt 0:01:02]} 6. Re1 {[%emt 0:04:27]} Nc6 {[%emt 0:01:14]} 7. c3 {[%emt 0:04:25]} e6 {[%emt 0:01:42]} 8. d4 {[%emt 0:06:15]} cxd4 {[%emt 0:01:54]} 9. cxd4 {[%emt 0:00:28]} d5 {[%emt 0:00:52]} 10. e5 {[%emt 0:06:00]} Ne4 {[%emt 0:01:13]} 11. a3 {[%emt 0:05:47]} a5 {[%emt 0:04:06]} 12. Nbd2 {[%emt 0:05:12]} Nxd2 {[%emt 0:01:32]} 13. Bxd2 {[%emt 0:00:18]} Be7 {[%emt 0:00:50]} 14. Rc1 {[%emt 0:06:50]} O-O {[%emt 0:02:32]} 15. Rc3 {[%emt 0:05:19]} a4 {[%emt 0:02:32]} 16. Rd3 {[%emt 0:02:42]} Rfc8 {[%emt 0:02:57]} 17. h4 {[%emt 0:04:33]} b5 {[%emt 0:05:07]} 18. Nh2 {[%emt 0:05:43]} b4 {[%emt 0:03:20]} 19. Qg4 {[%emt 0:03:53]} bxa3 {[%emt 0:04:44]} 20. bxa3 {[%emt 0:00:16]} Na5 {[%emt 0:00:43]} 21. Bh6 {[%emt 0:02:54]} g6 {[%emt 0:02:43]} 22. Qf4 {[%emt 0:25:50]} f5 {[%emt 0:18:01]} 23. exf6 {[%emt 0:00:00]} Bf8 {[%emt 0:00:48]} 24. Ng4 {[%emt 0:00:00]} Qf7 {[%emt 0:03:05]} 25. Bxf8 {[%emt 0:00:00]} Kxf8 {[%emt 0:03:24]} 26. Qd6+ {[%emt 0:00:00]} 1-0

[Event "European School-ch G13 2024"]
[Site "Limerick"]
[Date "2024.06.06"]
[Round "6.5"]
[White "Tumer, Eylul"]
[Black "B. Berglindardottir, Emilia Embla"]
[Result "1-0"]
[ECO "B09"]
[WhiteElo "1539"]
[BlackElo "1544"]
[Annotator "NA RC"]
[PlyCount "81"]
[EventDate "2024.05.31"]
[EventType "swiss"]
[EventCountry "IRL"]
[SourceTitle "playchess.com"]
[Source "ChessBase"]
[SourceQuality "1"]
[TimeControl "5400+30"]

1. e4 {[%emt 0:00:01]} d6 {[%emt 0:00:07]} 2. d4 {[%emt 0:00:04]} Nf6 {[%emt 0:00:09]} 3. Nc3 {[%emt 0:00:11]} g6 {[%emt 0:00:12]} 4. f4 {[%emt 0:00:10]} Bg7 {[%emt 0:00:25]} 5. Nf3 {[%emt 0:00:22]} O-O {[%emt 0:01:53]} 6. e5 {[%emt 0:00:10]} dxe5 {[%emt 0:00:20]} 7. fxe5 {[%emt 0:00:05]} Nfd7 {[%emt 0:01:08]} 8. Bc4 {[%emt 0:01:17]} c5 {[%emt 0:01:39]} 9. e6 {[%emt 0:05:31]} Nb6 {[%emt 0:00:28]} 10. exf7+ {[%emt 0:02:28]} Kh8 {[%emt 0:00:20]} 11. Qe2 {[%emt 0:01:46]} cxd4 {[%emt 0:02:53]} 12. Ne4 {[%emt 0:01:27]} Bg4 {[%emt 0:20:01]} 13. Bb3 {[%emt 0:02:18]} Nc6 {[%emt 0:05:25]} 14. Bf4 {[%emt 0:03:18]} e5 {[%emt 0:01:12]} 15. Bg5 {[%emt 0:01:12]} Qc7 {[%emt 0:04:43]} 16. Nf6 {[%emt 0:05:18]} Bf5 {[%emt 0:06:50]} 17. Qf2 {[%emt 0:00:44]} h5 {[%emt 0:10:58]} 18. g4 {[%emt 0:00:27]} Qe7 {[%emt 0:03:32]} 19. Nd5 {[%emt 0:01:29]} Qc5 {[%emt 0:07:07]} 20. Nxb6 {[%emt 0:01:10]} Qb4+ {[%emt 0:01:03]} 21. Bd2 {[%emt 0:00:28]} Qxb6 {[%emt 0:00:15]} 22. gxf5 {[%emt 0:00:05]} e4 {[%emt 0:01:03]} 23. Nh4 {[%emt 0:01:42]} Ne5 {[%emt 0:01:15]} 24. Bf4 {[%emt 0:02:06]} Qa5+ {[%emt 0:01:59]} 25. Qd2 {[%emt 0:02:31]} Qd8 {[%emt 0:01:23]} 26. Nxg6+ {[%emt 0:02:45]} Nxg6 {[%emt 0:00:39]} 27. fxg6 {[%emt 0:00:04]} Qh4+ {[%emt 0:01:46]} 28. Bg3 {[%emt 0:00:22]} Qf6 {[%emt 0:00:17]} 29. O-O-O {[%emt 0:01:41]} d3 {[%emt 0:01:51]} 30. c3 {[%emt 0:01:06]} Rac8 {[%emt 0:02:33]} 31. Kb1 {[%emt 0:01:20]} Rfd8 {[%emt 0:00:57]} 32. Qf4 {[%emt 0:01:47]} Qxg6 {[%emt 0:00:44]} 33. Bh4 {[%emt 0:00:30]} Rd7 {[%emt 0:04:55]} 34. Rhg1 {[%emt 0:00:38]} Qh7 {[%emt 0:00:32]} 35. Be6 {[%emt 0:00:50]} e3 {[%emt 0:03:02]} 36. Bxd7 {[%emt 0:01:11]} d2+ {[%emt 0:05:55]} 37. Bf5 {[%emt 0:00:14]} Bh6 {[%emt 0:02:51]} 38. Bf6+ {[%emt 0:00:18]} Bg7 {[%emt 0:01:02]} 39. Bxh7 {[%emt 0:00:21]} e2 {[%emt 0:00:22]} 40. Bxg7+ {[%emt 0:00:08]} Kxh7 {[%emt 0:00:19]} 41. Qh6# {[%emt 0:00:10]} 1-0

[Event "European School-ch G13 2024"]
[Site "Limerick"]
[Date "2024.06.07"]
[Round "7.1"]
[White "Aydogan, Arya"]
[Black "Yazici, Zumral"]
[Result "1/2-1/2"]
[ECO "C47"]
[WhiteElo "1755"]
[BlackElo "1650"]
[Annotator "NA RC"]
[PlyCount "45"]
[EventDate "2024.05.31"]
[EventType "swiss"]
[EventCountry "IRL"]
[SourceTitle "playchess.com"]
[Source "ChessBase"]
[SourceQuality "1"]
[TimeControl "5400+30"]

1. e4 {[%emt 0:00:04]} e5 {[%emt 0:00:01]} 2. Nf3 {[%emt 0:00:13]} Nc6 {[%emt 0:00:02]} 3. Nc3 {[%emt 0:00:09]} Nf6 {[%emt 0:00:01]} 4. a3 {[%emt 0:01:25]} d5 {[%emt 0:00:03]} 5. Bb5 {[%emt 0:02:02]} Nxe4 {[%emt 0:00:15]} 6. Qe2 {[%emt 0:00:38]} Qd6 {[%emt 0:00:14]} 7. Nxe4 {[%emt 0:00:09]} dxe4 {[%emt 0:00:02]} 8. Qxe4 {[%emt 0:00:08]} Bd7 {[%emt 0:00:26]} 9. d4 {[%emt 0:00:57]} O-O-O {[%emt 0:00:11]} 10. dxe5 {[%emt 0:00:28]} Nxe5 {[%emt 0:00:06]} 11. Bxd7+ {[%emt 0:00:15]} Qxd7 {[%emt 0:01:31]} 12. O-O {[%emt 0:00:14]} Nxf3+ {[%emt 0:00:13]} 13. Qxf3 {[%emt 0:00:06]} Bc5 {[%emt 0:04:36]} 14. Be3 {[%emt 0:04:32]} Bxe3 {[%emt 0:01:35]} 15. Qxe3 {[%emt 0:00:13]} Qd4 {[%emt 0:00:54]} 16. Qxd4 {[%emt 0:01:17]} Rxd4 {[%emt 0:00:08]} 17. Rad1 {[%emt 0:01:00]} Rhd8 {[%emt 0:00:17]} 18. Rxd4 {[%emt 0:00:08]} Rxd4 {[%emt 0:00:01]} 19. Rc1 {[%emt 0:00:26]} Kd7 {[%emt 0:01:09]} 20. Kf1 {[%emt 0:00:10]} Kd6 {[%emt 0:03:07]} 21. Ke2 {[%emt 0:00:13]} Ke5 {[%emt 0:00:54]} 22. Rd1 {[%emt 0:03:50]} a5 {[%emt 0:05:47]} 23. Rd3 {[%emt 0:04:02]} 1/2-1/2